[Event "Late-Titled-Tuesday-Blitz-October-03-2023"]
[Site "Chess.com"]
[Date "2023.10.03"]
[Round "3"]
[White "Dhaydon19"]
[Black "Ducke13"]
[Result "1-0"]
[WhiteElo "2741"]
[BlackElo "2483"]
[TimeControl "180+1"]
[EndTime "14:26:51 PDT"]
[Termination "Dhaydon19 won by checkmate"]

1. d4 {[%clk 0:02:48]} 1... Nf6 {[%clk 0:02:57.8]} 2. Nc3 {[%clk 0:02:48.4]}
2... g6 {[%clk 0:02:58.7]} 3. e4 {[%clk 0:02:44.4]} 3... d6 {[%clk 0:02:58.7]}
4. f3 {[%clk 0:02:44.6]} 4... Bg7 {[%clk 0:02:57]} 5. Be3 {[%clk 0:02:45.1]}
5... c5 {[%clk 0:02:54.4]} 6. Nge2 {[%clk 0:02:43.9]} 6... cxd4 {[%clk
0:02:53.4]} 7. Nxd4 {[%clk 0:02:43.3]} 7... Nc6 {[%clk 0:02:54.1]} 8. Qd2 {[%clk
0:02:43]} 8... h5 {[%clk 0:02:53]} 9. h4 {[%clk 0:02:41.1]} 9... a6 {[%clk
0:02:47]} 10. Bc4 {[%clk 0:02:40.5]} 10... Bd7 {[%clk 0:02:44.8]} 11. Bb3 {[%clk
0:02:33.6]} 11... Qc7 {[%clk 0:02:41.2]} 12. O-O-O {[%clk 0:02:25.8]} 12... b5
{[%clk 0:02:38.4]} 13. Kb1 {[%clk 0:02:23.4]} 13... Na5 {[%clk 0:02:28]} 14. Nd5
{[%clk 0:01:58.7]} 14... Nxd5 {[%clk 0:02:23.6]} 15. Bxd5 {[%clk 0:01:58.2]}
15... Rc8 {[%clk 0:02:23]} 16. Nb3 {[%clk 0:01:52]} 16... Nc4 {[%clk 0:02:18.8]}
17. Bxc4 {[%clk 0:01:46.8]} 17... bxc4 {[%clk 0:02:16.5]} 18. Nd4 {[%clk
0:01:46.7]} 18... c3 {[%clk 0:02:15.6]} 19. Qxc3 {[%clk 0:01:45.3]} 19... Qxc3
{[%clk 0:02:15.1]} 20. bxc3 {[%clk 0:01:45.9]} 20... Rxc3 {[%clk 0:02:15.4]} 21.
Rd3 {[%clk 0:01:45.9]} 21... Rc4 {[%clk 0:02:07.1]} 22. Nb3 {[%clk 0:01:42.7]}
22... O-O {[%clk 0:02:00.5]} 23. Bd4 {[%clk 0:01:41.4]} 23... Rb8 {[%clk
0:01:54.8]} 24. Bxg7 {[%clk 0:01:39]} 24... Kxg7 {[%clk 0:01:55.7]} 25. Kc1
{[%clk 0:01:33.9]} 25... Ra4 {[%clk 0:01:52.5]} 26. Kb2 {[%clk 0:01:31.9]} 26...
Be6 {[%clk 0:01:40.4]} 27. Rc3 {[%clk 0:01:27.2]} 27... Rb7 {[%clk 0:01:38.9]}
28. Rd1 {[%clk 0:01:25.2]} 28... a5 {[%clk 0:01:36.4]} 29. Ka1 {[%clk
0:01:22.3]} 29... Ra3 {[%clk 0:01:30]} 30. Kb2 {[%clk 0:01:14.8]} 30... Ra4
{[%clk 0:01:27.1]} 31. a3 {[%clk 0:01:06.6]} 31... Rc4 {[%clk 0:01:21.3]} 32.
Rxc4 {[%clk 0:01:03.4]} 32... Bxc4 {[%clk 0:01:22.2]} 33. Rd4 {[%clk 0:00:59.6]}
33... Bf1 {[%clk 0:01:10.2]} 34. g3 {[%clk 0:00:51.5]} 34... Be2 {[%clk
0:00:23]} 35. f4 {[%clk 0:00:48.6]} 35... e5 {[%clk 0:00:19.9]} 36. fxe5 {[%clk
0:00:46.7]} 36... dxe5 {[%clk 0:00:20.8]} 37. Ra4 {[%clk 0:00:46.9]} 37... Bf3
{[%clk 0:00:19.7]} 38. Rxa5 {[%clk 0:00:46.9]} 38... Bxe4 {[%clk 0:00:18.7]} 39.
Rxe5 {[%clk 0:00:47.2]} 39... Bf5 {[%clk 0:00:19.4]} 40. a4 {[%clk 0:00:46.9]}
40... Rc7 {[%clk 0:00:19.6]} 41. Rc5 {[%clk 0:00:45.9]} 41... Ra7 {[%clk
0:00:19.4]} 42. a5 {[%clk 0:00:46]} 42... Be6 {[%clk 0:00:20.2]} 43. Nd4 {[%clk
0:00:45.9]} 43... Bd7 {[%clk 0:00:18.1]} 44. c4 {[%clk 0:00:45]} 44... Kf6
{[%clk 0:00:17.5]} 45. Kc3 {[%clk 0:00:43.3]} 45... Ke7 {[%clk 0:00:16.9]} 46.
Rd5 {[%clk 0:00:40.5]} 46... Be6 {[%clk 0:00:14.3]} 47. Nc6+ {[%clk 0:00:40.3]}
47... Kf6 {[%clk 0:00:11.8]} 48. Nxa7 {[%clk 0:00:40.8]} 48... Bxd5 {[%clk
0:00:12.2]} 49. cxd5 {[%clk 0:00:41.4]} 49... Ke5 {[%clk 0:00:13.1]} 50. Kc4
{[%clk 0:00:38.6]} 50... Kd6 {[%clk 0:00:13.4]} 51. Nb5+ {[%clk 0:00:38.3]}
51... Kd7 {[%clk 0:00:14.2]} 52. a6 {[%clk 0:00:38.9]} 52... Kc8 {[%clk
0:00:13.7]} 53. d6 {[%clk 0:00:38.9]} 53... f5 {[%clk 0:00:13.3]} 54. a7 {[%clk
0:00:38.9]} 54... Kb7 {[%clk 0:00:13.4]} 55. d7 {[%clk 0:00:39.3]} 55... f4
{[%clk 0:00:12.3]} 56. d8=Q {[%clk 0:00:39.1]} 56... fxg3 {[%clk 0:00:12.4]} 57.
a8=Q# {[%clk 0:00:39.3]} 1-0

[Event "Late-Titled-Tuesday-Blitz-October-03-2023"]
[Site "Chess.com"]
[Date "2023.10.03"]
[Round "3"]
[White "MasterKroket"]
[Black "bazar-wokzal"]
[Result "0-1"]
[WhiteElo "2388"]
[BlackElo "2586"]
[TimeControl "180+1"]
[EndTime "14:26:53 PDT"]
[Termination "bazar-wokzal won by checkmate"]

1. e4 {[%clk 0:03:00.9]} 1... Nc6 {[%clk 0:02:59.6]} 2. Nf3 {[%clk 0:02:59.3]}
2... d5 {[%clk 0:02:59.5]} 3. exd5 {[%clk 0:02:56.9]} 3... Qxd5 {[%clk
0:03:00.4]} 4. Nc3 {[%clk 0:02:57.1]} 4... Qa5 {[%clk 0:03:00.5]} 5. d4 {[%clk
0:02:56.2]} 5... Bg4 {[%clk 0:03:00]} 6. h3 {[%clk 0:02:52.5]} 6... Bxf3 {[%clk
0:02:59.4]} 7. Qxf3 {[%clk 0:02:53]} 7... O-O-O {[%clk 0:02:59.5]} 8. d5 {[%clk
0:02:36]} 8... Nb4 {[%clk 0:02:51.9]} 9. Bd3 {[%clk 0:02:33.8]} 9... Nf6 {[%clk
0:02:50.1]} 10. O-O {[%clk 0:02:18.5]} 10... Nbxd5 {[%clk 0:02:44]} 11. Bd2
{[%clk 0:02:16.7]} 11... e6 {[%clk 0:02:31.6]} 12. Ne4 {[%clk 0:02:12.9]} 12...
Qb6 {[%clk 0:02:28.2]} 13. Nxf6 {[%clk 0:02:12.1]} 13... gxf6 {[%clk 0:02:15.3]}
14. c4 {[%clk 0:02:01.9]} 14... Nb4 {[%clk 0:02:14.1]} 15. Bxb4 {[%clk
0:01:55.5]} 15... Bxb4 {[%clk 0:02:10.1]} 16. a3 {[%clk 0:01:46]} 16... Bc5
{[%clk 0:01:53.2]} 17. b4 {[%clk 0:01:45.3]} 17... Bd4 {[%clk 0:01:52.5]} 18.
Rad1 {[%clk 0:01:46]} 18... Qc6 {[%clk 0:01:37]} 19. Be4 {[%clk 0:01:42.2]}
19... Qa6 {[%clk 0:01:32]} 20. Qb3 {[%clk 0:01:19.4]} 20... f5 {[%clk
0:01:28.1]} 21. Bf3 {[%clk 0:01:19.5]} 21... e5 {[%clk 0:01:21.6]} 22. c5 {[%clk
0:01:16.8]} 22... e4 {[%clk 0:01:17.9]} 23. Bh5 {[%clk 0:01:15.7]} 23... f4
{[%clk 0:00:59.7]} 24. Bxf7 {[%clk 0:01:00.4]} 24... e3 {[%clk 0:00:55]} 25.
fxe3 {[%clk 0:01:00.7]} 25... fxe3 {[%clk 0:00:53.4]} 26. Be6+ {[%clk
0:00:57.8]} 26... Kb8 {[%clk 0:00:52.8]} 27. Bc4 {[%clk 0:00:58.4]} 27... Qg6
{[%clk 0:00:46.9]} 28. Kh1 {[%clk 0:00:47.3]} 28... Rhe8 {[%clk 0:00:35.5]} 29.
Be2 {[%clk 0:00:44.7]} 29... Qg3 {[%clk 0:00:23.3]} 30. Rf3 {[%clk 0:00:43.1]}
30... Qg5 {[%clk 0:00:23.1]} 31. Rf7 {[%clk 0:00:28.4]} 31... Be5 {[%clk
0:00:19.9]} 32. Rxd8+ {[%clk 0:00:21.3]} 32... Rxd8 {[%clk 0:00:19.7]} 33. Rf3
{[%clk 0:00:20.4]} 33... Bf4 {[%clk 0:00:15.2]} 34. Qf7 {[%clk 0:00:15.8]} 34...
Bg3 {[%clk 0:00:11.9]} 35. Rf1 {[%clk 0:00:11.6]} 35... Bf2 {[%clk 0:00:11]} 36.
Qe6 {[%clk 0:00:09.6]} 36... a5 {[%clk 0:00:10.3]} 37. Bf3 {[%clk 0:00:09.7]}
37... Qg6 {[%clk 0:00:05.2]} 38. Qc4 {[%clk 0:00:07.9]} 38... Qd3 {[%clk
0:00:04.7]} 39. Qf7 {[%clk 0:00:05.5]} 39... Qxf1+ {[%clk 0:00:04.3]} 40. Kh2
{[%clk 0:00:05.7]} 40... Qg1# {[%clk 0:00:05.2]} 0-1

[Event "Late-Titled-Tuesday-Blitz-October-03-2023"]
[Site "Chess.com"]
[Date "2023.10.03"]
[Round "3"]
[White "roxannyzoldyck"]
[Black "ChadBiryani"]
[Result "1-0"]
[WhiteElo "2235"]
[BlackElo "2499"]
[TimeControl "180+1"]
[EndTime "14:26:53 PDT"]
[Termination "roxannyzoldyck won on time"]

1. e4 {[%clk 0:02:59.9]} 1... d5 {[%clk 0:02:59.2]} 2. exd5 {[%clk 0:02:59.8]}
2... Qxd5 {[%clk 0:03:00.1]} 3. Nc3 {[%clk 0:03:00]} 3... Qd6 {[%clk 0:03:00.2]}
4. Bc4 {[%clk 0:02:59.3]} 4... Nf6 {[%clk 0:02:58.4]} 5. d3 {[%clk 0:02:59.2]}
5... Nc6 {[%clk 0:02:55.9]} 6. h3 {[%clk 0:02:50.6]} 6... h6 {[%clk 0:02:51.3]}
7. Nf3 {[%clk 0:02:50.3]} 7... Bf5 {[%clk 0:02:50.7]} 8. Nb5 {[%clk 0:02:30.1]}
8... Qd7 {[%clk 0:02:20.2]} 9. Bf4 {[%clk 0:02:21.6]} 9... Rc8 {[%clk
0:02:19.1]} 10. Qd2 {[%clk 0:02:08]} 10... a6 {[%clk 0:02:17.4]} 11. Nc3 {[%clk
0:02:07.6]} 11... e6 {[%clk 0:02:16.7]} 12. O-O-O {[%clk 0:02:04.7]} 12... Bb4
{[%clk 0:01:40.1]} 13. g4 {[%clk 0:01:43.3]} 13... Bh7 {[%clk 0:01:35.9]} 14.
Rde1 {[%clk 0:01:10.2]} 14... b5 {[%clk 0:01:16.8]} 15. Bb3 {[%clk 0:01:09.7]}
15... Nd4 {[%clk 0:01:03.4]} 16. Nxd4 {[%clk 0:01:08.3]} 16... Qxd4 {[%clk
0:01:03.3]} 17. Be5 {[%clk 0:00:52.1]} 17... Qd7 {[%clk 0:01:02.1]} 18. f4
{[%clk 0:00:42.3]} 18... c5 {[%clk 0:00:44]} 19. f5 {[%clk 0:00:23.8]} 19... c4
{[%clk 0:00:15.7]} 20. dxc4 {[%clk 0:00:24.7]} 20... Qxd2+ {[%clk 0:00:15.1]}
21. Kxd2 {[%clk 0:00:25.6]} 21... O-O {[%clk 0:00:11.4]} 22. cxb5 {[%clk
0:00:25.6]} 22... exf5 {[%clk 0:00:10.9]} 23. gxf5 {[%clk 0:00:24.3]} 23... Bxf5
{[%clk 0:00:06.7]} 24. Bxf6 {[%clk 0:00:24.6]} 24... gxf6 {[%clk 0:00:07.6]} 25.
bxa6 {[%clk 0:00:23]} 25... Rfd8+ {[%clk 0:00:06.6]} 26. Kc1 {[%clk 0:00:22.2]}
26... Rd6 {[%clk 0:00:05.6]} 27. Ne4 {[%clk 0:00:16.5]} 27... Rxa6 {[%clk
0:00:05.1]} 28. c3 {[%clk 0:00:14.1]} 28... Bf8 {[%clk 0:00:04.1]} 29. Rhf1
{[%clk 0:00:11.5]} 29... Bg6 {[%clk 0:00:03.8]} 30. h4 {[%clk 0:00:11.4]} 30...
h5 {[%clk 0:00:03]} 31. Ng3 {[%clk 0:00:09.2]} 31... Bh6+ {[%clk 0:00:03.3]} 32.
Kd1 {[%clk 0:00:07.9]} 32... Rd6+ {[%clk 0:00:02.1]} 33. Ke2 {[%clk 0:00:08.1]}
33... Re8+ {[%clk 0:00:01.2]} 34. Kf2 {[%clk 0:00:08.6]} 34... Rd2+ {[%clk
0:00:01.2]} 35. Ne2 {[%clk 0:00:08.7]} 1-0

[Event "Late-Titled-Tuesday-Blitz-October-03-2023"]
[Site "Chess.com"]
[Date "2023.10.03"]
[Round "3"]
[White "ChristopherYoo"]
[Black "RETURNOFTHELAGGER"]
[Result "1-0"]
[WhiteElo "2995"]
[BlackElo "2669"]
[TimeControl "180+1"]
[EndTime "14:26:54 PDT"]
[Termination "ChristopherYoo won by resignation"]

1. d4 {[%clk 0:03:00.9]} 1... Nf6 {[%clk 0:02:58]} 2. c4 {[%clk 0:02:57.5]} 2...
g6 {[%clk 0:02:58.1]} 3. Nf3 {[%clk 0:02:55.7]} 3... Bg7 {[%clk 0:02:58]} 4. g3
{[%clk 0:02:56.2]} 4... O-O {[%clk 0:02:57.6]} 5. Bg2 {[%clk 0:02:56.6]} 5... d6
{[%clk 0:02:34.6]} 6. O-O {[%clk 0:02:53.2]} 6... c6 {[%clk 0:02:35.2]} 7. Nc3
{[%clk 0:02:29]} 7... Qa5 {[%clk 0:02:35.9]} 8. h3 {[%clk 0:02:25.7]} 8... e5
{[%clk 0:02:34]} 9. e4 {[%clk 0:02:24.5]} 9... Nbd7 {[%clk 0:02:32.2]} 10. d5
{[%clk 0:02:12.4]} 10... cxd5 {[%clk 0:02:28.7]} 11. cxd5 {[%clk 0:02:01.8]}
11... Nc5 {[%clk 0:02:29.3]} 12. Nd2 {[%clk 0:01:40.9]} 12... b5 {[%clk
0:02:27.7]} 13. a3 {[%clk 0:01:36.7]} 13... b4 {[%clk 0:02:24.8]} 14. Nc4 {[%clk
0:01:20.6]} 14... Qa6 {[%clk 0:02:22.8]} 15. axb4 {[%clk 0:01:20.9]} 15... Qxa1
{[%clk 0:01:59.4]} 16. bxc5 {[%clk 0:01:19.7]} 16... Ba6 {[%clk 0:02:00.3]} 17.
Nxd6 {[%clk 0:01:14.8]} 17... Bxf1 {[%clk 0:02:01.2]} 18. Qxf1 {[%clk 0:01:15]}
18... Ne8 {[%clk 0:01:42.4]} 19. Ndb5 {[%clk 0:01:01.8]} 19... Qa5 {[%clk
0:01:38]} 20. Be3 {[%clk 0:00:54.6]} 20... Rb8 {[%clk 0:01:38.2]} 21. Qe2 {[%clk
0:00:27.5]} 21... a6 {[%clk 0:01:38.4]} 22. Na3 {[%clk 0:00:27.8]} 22... f5
{[%clk 0:01:06.6]} 23. exf5 {[%clk 0:00:25.2]} 23... gxf5 {[%clk 0:01:07.5]} 24.
Nc4 {[%clk 0:00:10.8]} 24... Qa1+ {[%clk 0:01:07.1]} 25. Qf1 {[%clk 0:00:09.5]}
25... Qxf1+ {[%clk 0:01:02.9]} 26. Kxf1 {[%clk 0:00:10.4]} 26... f4 {[%clk
0:01:03.8]} 27. gxf4 {[%clk 0:00:08.2]} 27... exf4 {[%clk 0:01:04.7]} 28. Bd2
{[%clk 0:00:08.6]} 28... f3 {[%clk 0:00:56.8]} 29. Bh1 {[%clk 0:00:08.8]} 29...
Rb4 {[%clk 0:00:57]} 30. Ne3 {[%clk 0:00:03]} 30... Rxb2 {[%clk 0:00:56.9]} 31.
Ke1 {[%clk 0:00:03.5]} 31... Rf4 {[%clk 0:00:52.1]} 32. d6 {[%clk 0:00:03.2]}
32... Bf6 {[%clk 0:00:44.9]} 33. Ned5 {[%clk 0:00:02]} 33... Rf5 {[%clk
0:00:38.5]} 34. d7 {[%clk 0:00:02.1]} 34... Re5+ {[%clk 0:00:35.4]} 35. Kd1
{[%clk 0:00:02.7]} 35... Rxd2+ {[%clk 0:00:29.2]} 36. Kxd2 {[%clk 0:00:02.9]}
36... Bg5+ {[%clk 0:00:30.1]} 37. Kd3 {[%clk 0:00:03.4]} 37... Ng7 {[%clk
0:00:25.6]} 38. c6 {[%clk 0:00:03.9]} 38... Ne6 {[%clk 0:00:23.9]} 39. Bxf3
{[%clk 0:00:04.6]} 39... Kf7 {[%clk 0:00:22.7]} 40. Bh5+ {[%clk 0:00:04.6]}
40... Kg7 {[%clk 0:00:21.6]} 41. Bg4 {[%clk 0:00:04.7]} 41... Nc5+ {[%clk
0:00:17.6]} 42. Kd4 {[%clk 0:00:04.3]} 1-0

[Event "Late-Titled-Tuesday-Blitz-October-03-2023"]
[Site "Chess.com"]
[Date "2023.10.03"]
[Round "3"]
[White "esrosenberg"]
[Black "Alina_Gumerovna"]
[Result "1-0"]
[WhiteElo "2362"]
[BlackElo "2114"]
[TimeControl "180+1"]
[EndTime "14:26:59 PDT"]
[Termination "esrosenberg won on time"]

1. Nf3 {[%clk 0:02:59.1]} 1... Nf6 {[%clk 0:02:59.2]} 2. c4 {[%clk 0:02:58.7]}
2... g6 {[%clk 0:02:56.7]} 3. Nc3 {[%clk 0:02:58.4]} 3... Bg7 {[%clk 0:02:56.7]}
4. e4 {[%clk 0:02:58.7]} 4... d6 {[%clk 0:02:56.1]} 5. d4 {[%clk 0:02:59.6]}
5... O-O {[%clk 0:02:51.7]} 6. h3 {[%clk 0:02:58.7]} 6... Nbd7 {[%clk
0:02:51.1]} 7. e5 {[%clk 0:02:47.9]} 7... Ne8 {[%clk 0:02:41.1]} 8. e6 {[%clk
0:02:46.1]} 8... fxe6 {[%clk 0:02:41.1]} 9. Ng5 {[%clk 0:02:46.3]} 9... Ndf6
{[%clk 0:02:38.4]} 10. Bd3 {[%clk 0:02:45.2]} 10... d5 {[%clk 0:02:34.2]} 11.
O-O {[%clk 0:02:43.2]} 11... Nd6 {[%clk 0:02:23.3]} 12. b3 {[%clk 0:02:35.3]}
12... Nf5 {[%clk 0:02:21.1]} 13. Be3 {[%clk 0:02:22.6]} 13... h6 {[%clk
0:02:15.7]} 14. Nf3 {[%clk 0:02:20.6]} 14... Nxe3 {[%clk 0:02:13.1]} 15. fxe3
{[%clk 0:02:21.1]} 15... g5 {[%clk 0:02:01.2]} 16. Ne5 {[%clk 0:02:18.8]} 16...
b6 {[%clk 0:01:51]} 17. h4 {[%clk 0:02:19]} 17... c5 {[%clk 0:01:50.4]} 18. hxg5
{[%clk 0:02:19]} 18... hxg5 {[%clk 0:01:50.2]} 19. Qf3 {[%clk 0:02:04.9]} 19...
dxc4 {[%clk 0:01:27.6]} 20. bxc4 {[%clk 0:01:44.8]} 20... cxd4 {[%clk
0:01:27.3]} 21. Qxa8 {[%clk 0:01:36.9]} 21... dxc3 {[%clk 0:01:25.4]} 22. Rad1
{[%clk 0:01:37.1]} 22... Qc7 {[%clk 0:01:23.6]} 23. Ng6 {[%clk 0:01:24.9]} 23...
Qg3 {[%clk 0:01:02.6]} 24. Nxf8 {[%clk 0:01:16.3]} 24... Ng4 {[%clk 0:01:02.3]}
25. Rf3 {[%clk 0:01:07.6]} 25... Qh2+ {[%clk 0:00:47.8]} 26. Kf1 {[%clk
0:01:08.2]} 26... Bxf8 {[%clk 0:00:47.8]} 27. Rxf8+ {[%clk 0:01:02.6]} 27...
Kxf8 {[%clk 0:00:26.9]} 28. Qxc8+ {[%clk 0:01:02.7]} 28... Kg7 {[%clk
0:00:26.5]} 29. Be4 {[%clk 0:00:35.2]} 29... Nxe3+ {[%clk 0:00:19.9]} 30. Ke2
{[%clk 0:00:35.3]} 30... Nxd1 {[%clk 0:00:17]} 31. Kxd1 {[%clk 0:00:35.5]} 31...
Qg1+ {[%clk 0:00:17]} 32. Kc2 {[%clk 0:00:33.3]} 32... Qf2+ {[%clk 0:00:15.9]}
33. Kxc3 {[%clk 0:00:32.8]} 33... Qe3+ {[%clk 0:00:15.5]} 34. Bd3 {[%clk
0:00:33.2]} 34... Qe5+ {[%clk 0:00:13.9]} 35. Kc2 {[%clk 0:00:31.9]} 35... g4
{[%clk 0:00:04.9]} 36. Qe8 {[%clk 0:00:31.7]} 36... Qf6 {[%clk 0:00:04.4]} 37.
Qc6 {[%clk 0:00:29.4]} 37... Qf2+ {[%clk 0:00:04.1]} 38. Kb3 {[%clk 0:00:25.4]}
38... Kf6 {[%clk 0:00:01.8]} 39. Qe4 {[%clk 0:00:22]} 1-0

[Event "Late-Titled-Tuesday-Blitz-October-03-2023"]
[Site "Chess.com"]
[Date "2023.10.03"]
[Round "3"]
[White "lluiss"]
[Black "GiorgianBarbosa"]
[Result "0-1"]
[WhiteElo "2167"]
[BlackElo "2395"]
[TimeControl "180+1"]
[EndTime "14:27:04 PDT"]
[Termination "GiorgianBarbosa won by resignation"]

1. e4 {[%clk 0:03:00.9]} 1... c6 {[%clk 0:02:48.8]} 2. d4 {[%clk 0:02:59.6]}
2... d5 {[%clk 0:02:49.7]} 3. exd5 {[%clk 0:02:59.9]} 3... cxd5 {[%clk
0:02:50.1]} 4. Bd3 {[%clk 0:03:00.3]} 4... Nf6 {[%clk 0:02:51]} 5. h3 {[%clk
0:02:53.4]} 5... g6 {[%clk 0:02:51.9]} 6. Nf3 {[%clk 0:02:52.8]} 6... Bg7 {[%clk
0:02:52.8]} 7. O-O {[%clk 0:02:52.2]} 7... O-O {[%clk 0:02:53.7]} 8. c3 {[%clk
0:02:52.2]} 8... Nc6 {[%clk 0:02:54.6]} 9. Bf4 {[%clk 0:02:52]} 9... Bf5 {[%clk
0:02:54.9]} 10. Bxf5 {[%clk 0:02:49.8]} 10... gxf5 {[%clk 0:02:55.8]} 11. Ne5
{[%clk 0:02:50.5]} 11... e6 {[%clk 0:02:54]} 12. Nxc6 {[%clk 0:02:47]} 12...
bxc6 {[%clk 0:02:54.9]} 13. Be5 {[%clk 0:02:47.5]} 13... Ne4 {[%clk 0:02:52.7]}
14. Bxg7 {[%clk 0:02:47.3]} 14... Kxg7 {[%clk 0:02:53.6]} 15. Nd2 {[%clk
0:02:44.4]} 15... Kh8 {[%clk 0:02:51.5]} 16. Nxe4 {[%clk 0:02:25.6]} 16... dxe4
{[%clk 0:02:50.3]} 17. f3 {[%clk 0:02:25.8]} 17... e3 {[%clk 0:02:40.7]} 18. f4
{[%clk 0:02:25.2]} 18... Rg8 {[%clk 0:02:32.2]} 19. Qe2 {[%clk 0:02:24.9]} 19...
Qd5 {[%clk 0:02:20.7]} 20. Rf3 {[%clk 0:02:22.6]} 20... Rg6 {[%clk 0:02:21.6]}
21. Kh2 {[%clk 0:02:09.8]} 21... Rag8 {[%clk 0:02:21.4]} 22. g3 {[%clk
0:02:09.9]} 22... h5 {[%clk 0:02:11.2]} 23. h4 {[%clk 0:02:06]} 23... Rg4 {[%clk
0:02:05.9]} 24. Qxe3 {[%clk 0:02:03.1]} 24... Kh7 {[%clk 0:01:56.6]} 25. Raf1
{[%clk 0:01:54]} 25... Qxa2 {[%clk 0:01:52.5]} 26. R1f2 {[%clk 0:01:53.7]} 26...
Qd5 {[%clk 0:01:52.2]} 27. Qe5 {[%clk 0:01:53]} 27... Qd8 {[%clk 0:01:45.2]} 28.
Kh3 {[%clk 0:01:27.6]} 28... Rxh4+ {[%clk 0:01:30.1]} 29. Kg2 {[%clk 0:01:09.8]}
29... Rhg4 {[%clk 0:01:26.3]} 30. Rf1 {[%clk 0:01:04]} 30... h4 {[%clk
0:01:21.8]} 31. Rh1 {[%clk 0:01:02.4]} 31... Rxg3+ {[%clk 0:00:51.2]} 32. Rxg3
{[%clk 0:01:01.8]} 32... Rxg3+ {[%clk 0:00:52.1]} 33. Kf2 {[%clk 0:01:02.5]}
33... Rg4 {[%clk 0:00:45.6]} 34. Qc5 {[%clk 0:01:02.3]} 34... Rxf4+ {[%clk
0:00:37.4]} 35. Ke3 {[%clk 0:01:02.5]} 35... Qg5 {[%clk 0:00:31.1]} 36. Kd3
{[%clk 0:00:56.7]} 36... Qg2 {[%clk 0:00:22.3]} 37. Qxa7 {[%clk 0:00:46.3]}
37... Kg6 {[%clk 0:00:12.2]} 38. Qa1 {[%clk 0:00:39]} 38... Qf3+ {[%clk
0:00:06.5]} 39. Kc4 {[%clk 0:00:37.9]} 39... Qd5+ {[%clk 0:00:06.9]} 40. Kb4
{[%clk 0:00:38]} 40... Qb5+ {[%clk 0:00:07.1]} 41. Ka3 {[%clk 0:00:38]} 41...
Qa5+ {[%clk 0:00:07]} 42. Kb3 {[%clk 0:00:37.9]} 42... Qxa1 {[%clk 0:00:07.5]}
43. Rxa1 {[%clk 0:00:36.6]} 43... h3 {[%clk 0:00:07.6]} 44. Rh1 {[%clk
0:00:35.8]} 44... Rh4 {[%clk 0:00:07.6]} 45. Kc4 {[%clk 0:00:35.6]} 45... h2
{[%clk 0:00:08.5]} 46. Kd3 {[%clk 0:00:32.8]} 46... Kg5 {[%clk 0:00:08.2]} 47.
Ke3 {[%clk 0:00:32.8]} 47... Rh3+ {[%clk 0:00:07.7]} 48. Kf2 {[%clk 0:00:31.8]}
48... Kg4 {[%clk 0:00:08.6]} 49. Kg2 {[%clk 0:00:30]} 49... f6 {[%clk
0:00:08.3]} 50. b4 {[%clk 0:00:26.7]} 50... Rxc3 {[%clk 0:00:08.1]} 51. Kxh2
{[%clk 0:00:25.8]} 51... Rh3+ {[%clk 0:00:08.3]} 52. Kg2 {[%clk 0:00:25.7]}
52... Rxh1 {[%clk 0:00:09.2]} 53. Kxh1 {[%clk 0:00:26.6]} 53... Kf4 {[%clk
0:00:10]} 0-1

[Event "Late-Titled-Tuesday-Blitz-October-03-2023"]
[Site "Chess.com"]
[Date "2023.10.03"]
[Round "3"]
[White "GAusal"]
[Black "azikom"]
[Result "1/2-1/2"]
[WhiteElo "2284"]
[BlackElo "2583"]
[TimeControl "180+1"]
[EndTime "14:27:08 PDT"]
[Termination "Game drawn by repetition"]

1. d4 {[%clk 0:03:00.9]} 1... c6 {[%clk 0:02:59.7]} 2. Nf3 {[%clk 0:03:01.1]}
2... d5 {[%clk 0:02:59.8]} 3. c4 {[%clk 0:02:59.9]} 3... Nf6 {[%clk 0:02:59.2]}
4. Nc3 {[%clk 0:02:56.2]} 4... e6 {[%clk 0:02:59.5]} 5. Bf4 {[%clk 0:02:51.8]}
5... dxc4 {[%clk 0:02:57.8]} 6. e3 {[%clk 0:02:51.9]} 6... b5 {[%clk 0:02:57.5]}
7. a4 {[%clk 0:02:48.4]} 7... Bb4 {[%clk 0:02:55.1]} 8. Be2 {[%clk 0:02:44.6]}
8... Bb7 {[%clk 0:02:53.8]} 9. O-O {[%clk 0:02:41]} 9... Bxc3 {[%clk 0:02:50.4]}
10. bxc3 {[%clk 0:02:39.5]} 10... O-O {[%clk 0:02:46.3]} 11. Qb1 {[%clk
0:02:31.4]} 11... Qb6 {[%clk 0:02:23]} 12. Ne5 {[%clk 0:02:22.9]} 12... Nd5
{[%clk 0:02:14.4]} 13. Qb2 {[%clk 0:02:18.1]} 13... Nxf4 {[%clk 0:02:06.7]} 14.
exf4 {[%clk 0:02:17.5]} 14... f6 {[%clk 0:01:58.1]} 15. Ng4 {[%clk 0:02:13.5]}
15... Na6 {[%clk 0:01:47.7]} 16. Rfb1 {[%clk 0:02:08.3]} 16... Nc7 {[%clk
0:01:45.9]} 17. axb5 {[%clk 0:01:59.8]} 17... cxb5 {[%clk 0:01:45.4]} 18. Bf1
{[%clk 0:01:56.2]} 18... a6 {[%clk 0:01:28.2]} 19. Ne3 {[%clk 0:01:52]} 19...
Be4 {[%clk 0:00:35]} 20. Nxc4 {[%clk 0:01:46.9]} 20... Qc6 {[%clk 0:00:34.1]}
21. Na5 {[%clk 0:01:42.9]} 21... Qd6 {[%clk 0:00:33.6]} 22. Rc1 {[%clk
0:01:39.8]} 22... Qxf4 {[%clk 0:00:33]} 23. c4 {[%clk 0:01:36.2]} 23... Rab8
{[%clk 0:00:29.4]} 24. Qe2 {[%clk 0:01:21.7]} 24... Rfd8 {[%clk 0:00:22.5]} 25.
Qe3 {[%clk 0:01:16.4]} 25... Qxe3 {[%clk 0:00:21.3]} 26. fxe3 {[%clk 0:01:16.2]}
26... Ne8 {[%clk 0:00:18]} 27. c5 {[%clk 0:01:07.6]} 27... Nc7 {[%clk
0:00:17.2]} 28. Be2 {[%clk 0:01:03.6]} 28... Bd5 {[%clk 0:00:16.2]} 29. Bf3
{[%clk 0:00:59.7]} 29... Bxf3 {[%clk 0:00:14.8]} 30. gxf3 {[%clk 0:00:59.6]}
30... Rd7 {[%clk 0:00:14.7]} 31. Kf2 {[%clk 0:00:55.5]} 31... e5 {[%clk
0:00:11.6]} 32. c6 {[%clk 0:00:51.4]} 32... Rd5 {[%clk 0:00:08.2]} 33. dxe5
{[%clk 0:00:46.1]} 33... fxe5 {[%clk 0:00:07.1]} 34. Nb7 {[%clk 0:00:42.7]}
34... Rd2+ {[%clk 0:00:05.5]} 35. Kg3 {[%clk 0:00:41.7]} 35... Kf7 {[%clk
0:00:05.2]} 36. Nc5 {[%clk 0:00:37.2]} 36... Ra8 {[%clk 0:00:04.1]} 37. Nxa6
{[%clk 0:00:28.9]} 37... Rxa6 {[%clk 0:00:02.2]} 38. Rxa6 {[%clk 0:00:28.1]}
38... Nxa6 {[%clk 0:00:02.7]} 39. c7 {[%clk 0:00:28.6]} 39... Nxc7 {[%clk
0:00:03.1]} 40. Rxc7+ {[%clk 0:00:27.8]} 40... Kf6 {[%clk 0:00:03.3]} 41. Rb7
{[%clk 0:00:28.3]} 41... Rb2 {[%clk 0:00:03.1]} 42. e4 {[%clk 0:00:27.6]} 42...
b4 {[%clk 0:00:03]} 43. h4 {[%clk 0:00:26.9]} 43... b3 {[%clk 0:00:03.2]} 44.
Rb6+ {[%clk 0:00:24.7]} 44... Ke7 {[%clk 0:00:03]} 45. Rb7+ {[%clk 0:00:25]}
45... Kf6 {[%clk 0:00:03.3]} 46. Rb6+ {[%clk 0:00:25.1]} 46... Kf7 {[%clk
0:00:03.6]} 47. Rb7+ {[%clk 0:00:24.2]} 47... Kf6 {[%clk 0:00:03.8]} 1/2-1/2